fUST/lending_fUST_20260621
["ID","MTS","AMOUNT","RATE_DAILY","PERIOD"]
[425891949,1782025839000,-1259.08922441,0.00015233,2]
[425891941,1782025839000,-1478.18639506,0.00015034,2]
[425891947,1782025839000,-189.09285204,0.00015155,7]
[425891945,1782025839000,-245.36158535,0.00015155,7]
[425891943,1782025839000,-331.19447028,0.00015134,2]
[425891937,1782025839000,-504.4879127,0.00014834,2]
[425892097,1782025841000,-786.88397015,0.00015534,2]
[425892096,1782025841000,-456.89619897,0.00015534,2]
[425892082,1782025841000,-2390.75372636,0.00015233,2]
[425892084,1782025841000,-312.83471232,0.0001532,2]
[425892085,1782025841000,-398.12281312,0.00015534,2]
[425892117,1782025843000,-6611.2858165,0.00015534,2]
[425892119,1782025844000,-6354.07724786,0.00015534,2]
[425892121,1782025844000,-644.9,0.00015534,2]
[425892118,1782025844000,-5502.35841072,0.00015534,2]
[425892120,1782025844000,-3928.60947472,0.00015534,2]
[425892133,1782025846000,-12519.12770788,0.00015534,2]
[425892139,1782025847000,-1631.70070555,0.00015634,2]
[425892138,1782025847000,-32657.59970129,0.00015634,2]
[425892136,1782025847000,-189.09285204,0.00015588,7]
[425892137,1782025847000,-182.197,0.00015633,2]
[425892135,1782025847000,-245.36158535,0.00015588,7]
[425892134,1782025847000,-11421.02112876,0.00015534,2]
[425892361,1782025945000,157.80158684,0.00022856,120]
[425892519,1782027031000,-913.82477748,0.00013151,2]
[425892533,1782027031000,-359.22117111,0.00013151,2]
[425892521,1782027031000,-177.99064254,0.00013151,2]
[425892528,1782027031000,-596.50735518,0.00013151,2]
[425892506,1782027031000,-1561.0515082,0.00013019,2]
[425892526,1782027031000,-381.76470732,0.00013151,2]
[425892530,1782027031000,-858.11162087,0.00013151,2]
[425892523,1782027031000,-199.76708437,0.00013151,2]
[425892516,1782027031000,-182.7649555,0.00013151,2]
[425892525,1782027031000,-334.0441189,0.00013151,2]
[425892514,1782027031000,-677.2984918,0.00013019,2]
[425892541,1782027031000,-300.0,0.00013413,2]
[425892539,1782027031000,-300.0,0.00013413,2]
[425892543,1782027031000,-300.0,0.00013413,2]
[425892554,1782027031000,-300.0,0.00013413,2]
[425892550,1782027031000,-300.0,0.00013413,2]
[425892547,1782027031000,-300.0,0.00013413,2]
[425892545,1782027031000,-300.0,0.00013413,2]
[425892535,1782027031000,-300.0,0.00013413,2]
[425892552,1782027031000,-300.0,0.00013413,2]
[425892549,1782027031000,-300.0,0.00013413,2]
[425892556,1782027031000,-300.0,0.00013413,2]
[425892536,1782027031000,-300.0,0.00013413,2]
[425892564,1782027032000,-600.0,0.0001368,2]
[425892558,1782027032000,-300.0,0.00013413,2]
[425892562,1782027032000,-300.0,0.00013413,2]
[425892560,1782027032000,-300.0,0.00013413,2]
[425892566,1782027032000,-392.0469848,0.00013944,2]
[425892572,1782027032000,-426.07065584,0.00014634,2]
[425892568,1782027032000,-281.81030164,0.00014234,7]
[425892574,1782027032000,-360.33718375,0.00014634,2]
[425892580,1782027032000,-19702.58875335,0.00015234,2]
[425892576,1782027032000,-281.81030164,0.00014946,7]
[425892578,1782027032000,-720.0,0.00015048,2]
[425892570,1782027032000,-281.81030164,0.00014519,7]
[425892645,1782027038000,-505.52811609,0.00015433,2]
[425892644,1782027038000,-512.79571744,0.00015433,2]
[425892642,1782027038000,-500.0,0.00015433,2]
[425892671,1782027038000,-281.81030164,0.00015942,7]
[425892658,1782027038000,-500.0,0.00015733,2]
[425892650,1782027038000,-500.0,0.00015733,2]
[425892648,1782027038000,-500.0,0.00015733,2]
[425892646,1782027038000,-332.014873,0.00015711,2]
[425892657,1782027038000,-500.0,0.00015733,2]
[425892649,1782027038000,-500.0,0.00015733,2]
[425892654,1782027038000,-274.50945722,0.00015733,2]
[425892655,1782027038000,-500.0,0.00015733,2]
[425892651,1782027038000,-500.0,0.00015733,2]
[425892652,1782027038000,-500.0,0.00015733,2]
[425892653,1782027038000,-500.0,0.00015733,2]
[425892660,1782027038000,-500.0,0.00015733,2]
[425892659,1782027038000,-500.0,0.00015733,2]
[425892661,1782027038000,-500.0,0.00015733,2]
[425892668,1782027038000,-267.21508358,0.00015934,2]
[425892670,1782027038000,-1001.07107943,0.00015934,2]
[425892641,1782027038000,-500.0,0.00015433,2]
[425892656,1782027038000,-500.0,0.00015733,2]
[425892643,1782027038000,-500.0,0.00015433,2]
[425892618,1782027038000,-2765.77180788,0.00015234,2]
[425892634,1782027038000,-553.40559502,0.00015333,2]
[425892616,1782027038000,-2275.61281656,0.00015134,2]
[425892617,1782027038000,-42858.91847667,0.00015234,2]
[425892620,1782027038000,-124945.79654023,0.00015234,2]
[425892630,1782027038000,-500.0,0.00015333,2]
[425892631,1782027038000,-500.0,0.00015333,2]
[425892619,1782027038000,-6949.79294667,0.00015234,2]
[425892622,1782027038000,-162.48,0.00015307,2]
[425892626,1782027038000,-500.0,0.00015333,2]
[425892625,1782027038000,-500.0,0.00015333,2]
[425892621,1782027038000,-381.60364304,0.00015234,2]
[425892624,1782027038000,-503.71470772,0.00015333,2]
[425892628,1782027038000,-500.0,0.00015333,2]
[425892627,1782027038000,-500.0,0.00015333,2]
[425892629,1782027038000,-500.0,0.00015333,2]
[425892632,1782027038000,-500.0,0.00015333,2]
[425892635,1782027038000,-206.622,0.00015333,2]
[425892633,1782027038000,-562.78136003,0.00015333,2]
[425892639,1782027038000,-443.93335915,0.00015433,2]
[425892638,1782027038000,-500.0,0.00015433,2]
[425892637,1782027038000,-189.8954589,0.00015395,2]
[425892636,1782027038000,-281.81030164,0.00015373,7]
[425892640,1782027038000,-501.56016571,0.00015433,2]
[425892669,1782027038000,-299.29600872,0.00015934,2]
[425892647,1782027038000,-500.0,0.00015733,2]
[425892667,1782027038000,-563.10248218,0.00015934,2]
[425892696,1782027038000,-514.60425226,0.00016438,2]
[425892692,1782027038000,-500.0,0.00016438,2]
[425892693,1782027038000,-500.0,0.00016438,2]
[425892695,1782027038000,-523.47205526,0.00016438,2]
[425892699,1782027038000,-500.0,0.00016438,2]
[425892709,1782027038000,-500.0,0.00016438,2]
[425892698,1782027038000,-500.0,0.00016438,2]
[425892701,1782027038000,-1000.0,0.00016438,2]
[425892702,1782027038000,-500.0,0.00016438,2]
[425892700,1782027038000,-500.0,0.00016438,2]
[425892691,1782027038000,-500.0,0.00016438,2]
[425892704,1782027038000,-500.0,0.00016438,2]
[425892706,1782027038000,-500.0,0.00016438,2]
[425892708,1782027038000,-199.32437332,0.00016438,2]
[425892707,1782027038000,-500.0,0.00016438,2]
[425892710,1782027038000,-618.36638402,0.00016438,2]
[425892712,1782027038000,-513.87347527,0.00016438,2]
[425892714,1782027038000,-500.0,0.00016438,2]
[425892713,1782027038000,-500.0,0.00016438,2]
[425892715,1782027038000,-500.0,0.00016438,2]
[425892711,1782027038000,-517.06651606,0.00016438,2]
[425892665,1782027038000,-500.0,0.00015733,2]
[425892703,1782027038000,-500.0,0.00016438,2]
[425892697,1782027038000,-500.0,0.00016438,2]
[425892705,1782027038000,-500.0,0.00016438,2]
[425892690,1782027038000,-500.0,0.00016438,2]
[425892686,1782027038000,-523.52077079,0.00016438,2]
[425892662,1782027038000,-500.0,0.00015733,2]
[425892664,1782027038000,-500.0,0.00015733,2]
[425892663,1782027038000,-500.0,0.00015733,2]
[425892666,1782027038000,-437.93326836,0.00015733,2]
[425892673,1782027038000,-245.36158536,0.00016165,7]
[425892684,1782027038000,-500.0,0.00016438,2]
[425892683,1782027038000,-175.69488924,0.00016438,2]
[425892675,1782027038000,-1564.17356161,0.00016253,2]
[425892674,1782027038000,-189.09285206,0.00016165,7]
[425892676,1782027038000,-305.38866695,0.00016273,2]
[425892672,1782027038000,-998.11909165,0.00016133,6]
[425892687,1782027038000,-500.0,0.00016438,2]
[425892678,1782027038000,-25077.14912584,0.00016354,2]
[425892682,1782027038000,-547.63,0.00016438,2]
[425892681,1782027038000,-500.0,0.00016438,2]
[425892679,1782027038000,-332.014873,0.00016373,2]
[425892680,1782027038000,-500.0,0.00016438,2]
[425892685,1782027038000,-500.0,0.00016438,2]
[425892694,1782027038000,-513.31388399,0.00016438,2]
[425892689,1782027038000,-2000.75,0.00016438,2]
[425892688,1782027038000,-500.0,0.00016438,2]
[425892677,1782027038000,-342.05258139,0.00016273,2]
[425892759,1782027039000,-864.0,0.00016553,2]
[425892752,1782027039000,-500.0,0.00016438,2]
[425892749,1782027039000,-500.0,0.00016438,2]
[425892761,1782027039000,-500.0,0.00016712,2]
[425892760,1782027039000,-151.0,0.000167,2]
[425892757,1782027039000,-500.0,0.00016438,2]
[425892753,1782027039000,-500.0,0.00016438,2]
[425892756,1782027039000,-500.0,0.00016438,2]
[425892755,1782027039000,-509.02356707,0.00016438,2]
[425892754,1782027039000,-555.43025528,0.00016438,2]
[425892751,1782027039000,-500.0,0.00016438,2]
[425892762,1782027039000,-503.94,0.00016712,2]
[425892758,1782027039000,-151.0,0.000165,2]
[425892771,1782027039000,-151.71,0.00016712,2]
[425892776,1782027039000,-500.0,0.00016712,2]
[425892769,1782027039000,-500.0,0.00016712,2]
[425892772,1782027039000,-600.85980019,0.00016712,2]
[425892768,1782027039000,-500.0,0.00016712,2]
[425892770,1782027039000,-424.25022389,0.00016712,2]
[425892763,1782027039000,-547.63,0.00016712,2]
[425892764,1782027039000,-512.32324247,0.00016712,2]
[425892767,1782027039000,-509.50216706,0.00016712,2]
[425892766,1782027039000,-2000.75,0.00016712,2]
[425892765,1782027039000,-500.0,0.00016712,2]
[425892774,1782027039000,-1000.0,0.00016712,2]
[425892775,1782027039000,-500.0,0.00016712,2]
[425892778,1782027039000,-240.0,0.00016712,2]
[425892750,1782027039000,-500.0,0.00016438,2]
[425892773,1782027039000,-500.0,0.00016712,2]
[425892748,1782027039000,-521.12490063,0.00016438,2]
[425892735,1782027039000,-617.94562733,0.00016438,2]
[425892740,1782027039000,-500.0,0.00016438,2]
[425892716,1782027039000,-500.0,0.00016438,2]
[425892722,1782027039000,-500.0,0.00016438,2]
[425892721,1782027039000,-500.0,0.00016438,2]
[425892718,1782027039000,-500.0,0.00016438,2]
[425892719,1782027039000,-500.0,0.00016438,2]
[425892717,1782027039000,-500.0,0.00016438,2]
[425892720,1782027039000,-529.4049909,0.00016438,2]
[425892779,1782027039000,-500.0,0.00016712,2]
[425892724,1782027039000,-512.47562193,0.00016438,2]
[425892734,1782027039000,-500.0,0.00016438,2]
[425892730,1782027039000,-500.0,0.00016438,2]
[425892732,1782027039000,-500.0,0.00016438,2]
[425892723,1782027039000,-500.0,0.00016438,2]
[425892726,1782027039000,-500.0,0.00016438,2]
[425892725,1782027039000,-500.0,0.00016438,2]
[425892727,1782027039000,-514.42,0.00016438,2]
[425892733,1782027039000,-500.0,0.00016438,2]
[425892731,1782027039000,-509.72911745,0.00016438,2]
[425892728,1782027039000,-2247.81,0.00016438,2]
[425892729,1782027039000,-500.0,0.00016438,2]
[425892736,1782027039000,-519.09329317,0.00016438,2]
[425892743,1782027039000,-492.1635865,0.00016438,2]
[425892738,1782027039000,-500.0,0.00016438,2]
[425892745,1782027039000,-500.0,0.00016438,2]
[425892744,1782027039000,-500.0,0.00016438,2]
[425892737,1782027039000,-500.0,0.00016438,2]
[425892741,1782027039000,-523.36639386,0.00016438,2]
[425892746,1782027039000,-500.0,0.00016438,2]
[425892742,1782027039000,-500.0,0.00016438,2]
[425892747,1782027039000,-500.0,0.00016438,2]
[425892780,1782027039000,-500.0,0.00016712,2]
[425892777,1782027039000,-500.0,0.00016712,2]
[425892784,1782027039000,-500.0,0.00016712,2]
[425892826,1782027039000,-284.71,0.00016986,2]
[425892825,1782027039000,-500.94469071,0.00016986,2]
[425892827,1782027039000,-500.0,0.00016986,2]
[425892817,1782027039000,-347.20903385,0.00016798,2]
[425892816,1782027039000,-189.09285204,0.00016768,7]
[425892818,1782027039000,-151.0,0.000168,2]
[425892823,1782027039000,-508.32769796,0.00016986,2]
[425892822,1782027039000,-2000.75,0.00016986,2]
[425892821,1782027039000,-500.0,0.00016986,2]
[425892819,1782027039000,-686.93852817,0.00016857,2]
[425892820,1782027039000,-547.63,0.00016986,2]
[425892828,1782027039000,-500.0,0.00016986,2]
[425892836,1782027039000,-500.0,0.00016986,2]
[425892831,1782027039000,-484.94,0.00016986,2]
[425892830,1782027039000,-521.57088458,0.00016986,2]
[425892834,1782027039000,-514.42,0.00016986,2]
[425892833,1782027039000,-511.78646617,0.00016986,2]
[425892839,1782027039000,-500.0,0.00016986,2]
[425892832,1782027039000,-474.78808671,0.00016986,2]
[425892840,1782027039000,-500.0,0.00016986,2]
[425892835,1782027039000,-2247.81,0.00016986,2]
[425892829,1782027039000,-181.11086629,0.00016986,2]
[425892837,1782027039000,-500.0,0.00016986,2]
[425892838,1782027039000,-500.0,0.00016986,2]
[425892781,1782027039000,-509.21432276,0.00016712,2]
[425892841,1782027039000,-500.0,0.00016986,2]
[425892844,1782027039000,-500.0,0.00016986,2]
[425892845,1782027039000,-500.0,0.00016986,2]
[425892843,1782027039000,-500.0,0.00016986,2]
[425892824,1782027039000,-1000.0,0.00016986,2]
[425892815,1782027039000,-447.224,0.00016719,2]
[425892842,1782027039000,-213.75026416,0.00016986,2]
[425892812,1782027039000,-500.0,0.00016712,2]
[425892813,1782027039000,-873.284,0.00016719,2]
[425892783,1782027039000,-500.0,0.00016712,2]
[425892782,1782027039000,-500.0,0.00016712,2]
[425892786,1782027039000,-500.0,0.00016712,2]
[425892785,1782027039000,-448.2407431,0.00016712,2]
[425892787,1782027039000,-250.0011,0.00016712,2]
[425892798,1782027039000,-500.0,0.00016712,2]
[425892799,1782027039000,-400.84557689,0.00016712,2]
[425892790,1782027039000,-514.42,0.00016712,2]
[425892800,1782027039000,-500.0,0.00016712,2]
[425892789,1782027039000,-500.0,0.00016712,2]
[425892795,1782027039000,-500.0,0.00016712,2]
[425892796,1782027039000,-500.0,0.00016712,2]
[425892793,1782027039000,-197.26958726,0.00016712,2]
[425892788,1782027039000,-500.0,0.00016712,2]
[425892792,1782027039000,-500.0,0.00016712,2]
[425892814,1782027039000,-195.192,0.00016719,2]
[425892791,1782027039000,-2247.81,0.00016712,2]
[425892810,1782027039000,-500.0,0.00016712,2]
[425892808,1782027039000,-500.0,0.00016712,2]
[425892805,1782027039000,-500.0,0.00016712,2]
[425892809,1782027039000,-500.0,0.00016712,2]
[425892806,1782027039000,-500.0,0.00016712,2]
[425892807,1782027039000,-500.0,0.00016712,2]
[425892804,1782027039000,-525.75847193,0.00016712,2]
[425892803,1782027039000,-500.0,0.00016712,2]
[425892801,1782027039000,-500.0,0.00016712,2]
[425892794,1782027039000,-500.0,0.00016712,2]
[425892797,1782027039000,-500.0,0.00016712,2]
[425892802,1782027039000,-500.0,0.00016712,2]
[425892860,1782027040000,-514.42,0.0001726,2]
[425892858,1782027040000,-500.0,0.0001726,2]
[425892857,1782027040000,-547.63,0.0001726,2]
[425892861,1782027040000,-2247.81,0.0001726,2]
[425892862,1782027040000,-500.0,0.0001726,2]
[425892863,1782027040000,-500.0,0.0001726,2]
[425892859,1782027040000,-2000.75,0.0001726,2]
[425892855,1782027040000,-534.45715843,0.00017246,2]
[425892853,1782027040000,-232.38639933,0.00017178,2]
[425892849,1782027040000,-247.63,0.00017155,2]
[425892846,1782027040000,-332.014873,0.00017034,2]
[425892850,1782027040000,-249.07,0.00017155,2]
[425892847,1782027040000,-2252.40992872,0.00017057,2]
[425892848,1782027040000,-150.692,0.00017155,2]
[425892854,1782027040000,-477.1697921,0.00017246,2]
[425892852,1782027040000,-285.055,0.00017155,2]
[425892856,1782027040000,-283.81222676,0.0001726,2]
[425892851,1782027040000,-151.178,0.00017155,2]
[425892864,1782027040000,-500.0,0.0001726,2]
[425892874,1782027040000,-500.0,0.00017534,2]
[425892865,1782027040000,-500.0,0.0001726,2]
[425892884,1782027040000,-6.22911831,0.00017573,2]
[425892866,1782027040000,-500.0,0.0001726,2]
[425892881,1782027040000,-160.0,0.00017573,2]
[425892877,1782027040000,-500.0,0.00017534,2]
[425892882,1782027040000,-160.0,0.00017573,2]
[425892880,1782027040000,-160.0,0.00017573,2]
[425892879,1782027040000,-500.0,0.00017534,2]
[425892878,1782027040000,-500.0,0.00017534,2]
[425892883,1782027040000,-417.15472785,0.00017573,2]
[425892869,1782027040000,-547.63,0.00017534,2]
[425892872,1782027040000,-514.42,0.00017534,2]
[425892875,1782027040000,-500.0,0.00017534,2]
[425892868,1782027040000,-1482.43593162,0.00017416,2]
[425892870,1782027040000,-500.0,0.00017534,2]
[425892871,1782027040000,-2000.75,0.00017534,2]
[425892873,1782027040000,-2247.81,0.00017534,2]
[425892867,1782027040000,-500.0,0.0001726,2]
[425892876,1782027040000,-500.0,0.00017534,2]
[425892906,1782027045000,-500.0,0.00017808,2]
[425892902,1782027045000,-514.42,0.00017808,2]
[425892896,1782027045000,-547.63,0.00017808,2]
[425892898,1782027045000,-500.0,0.00017808,2]
[425892919,1782027045000,-3062.71440058,0.00017861,2]
[425892904,1782027045000,-2247.81,0.00017808,2]
[425892892,1782027045000,-951.82934657,0.000177,2]
[425892890,1782027045000,-160.0,0.00017573,2]
[425892891,1782027045000,-332.014873,0.00017695,2]
[425892893,1782027045000,-262.20296488,0.000178,2]
[425892889,1782027045000,-153.77088169,0.00017573,2]
[425892888,1782027045000,-2275.6128165,0.00016224,2]
[425892894,1782027045000,-689.62638169,0.000178,2]
[425892917,1782027045000,-500.0,0.00017808,2]
[425892900,1782027045000,-2000.75,0.00017808,2]
[425892923,1782027045000,-951.82934657,0.00018,2]
[425892932,1782027045000,-2247.81,0.00018082,2]
[425892935,1782027045000,-500.0,0.00018082,2]
[425892936,1782027045000,-88.35300421,0.00018082,2]
[425892931,1782027045000,-514.42,0.00018082,2]
[425892933,1782027045000,-500.0,0.00018082,2]
[425892934,1782027045000,-500.0,0.00018082,2]
[425892928,1782027045000,-500.0,0.00018082,2]
[425892921,1782027045000,-196.49955408,0.00018,2]
[425892929,1782027045000,-2000.75,0.00018082,2]
[425892914,1782027045000,-500.0,0.00017808,2]
[425892915,1782027045000,-500.0,0.00017808,2]
[425892912,1782027045000,-319.37631205,0.00017808,2]
[425892910,1782027045000,-277.81558652,0.00017808,2]
[425892908,1782027045000,-500.0,0.00017808,2]
[425892926,1782027045000,-547.63,0.00018082,2]
[425892940,1782027046000,-411.64699579,0.00018082,2]
[425892948,1782027046000,-680.31175491,0.00018328,4]
[425892947,1782027046000,-167.0,0.00018301,3]
[425892945,1782027046000,-686.43737613,0.00018219,2]
[425892944,1782027046000,-1000.0,0.00018208,2]
[425892942,1782027046000,-196.49955408,0.000182,2]
[425892943,1782027046000,-951.82934657,0.000182,2]
[425892941,1782027046000,-500.0,0.00018082,2]
[425892946,1782027046000,-768.84868983,0.00018219,2]
[425893046,1782028231000,-184.21329258,0.00013827,2]
[425893059,1782028231000,-511.32483577,0.00015233,2]
[425893048,1782028231000,-214.582371,0.00015068,2]
[425893061,1782028231000,-168.146129,0.0001524,2]
[425893057,1782028231000,-524.29841156,0.00015233,2]
[425893065,1782028231000,-214.85404036,0.00015537,2]
[425893053,1782028231000,-144.29566358,0.00015131,2]
[425893055,1782028231000,-378.03846454,0.00015233,2]
[425893063,1782028231000,-300.0,0.00015537,2]
[425893050,1782028231000,-15.70433642,0.00015131,2]
[425893067,1782028232000,-85.14595964,0.00015537,2]
[425893071,1782028232000,-236.04419864,0.00015537,2]
[425893069,1782028232000,-300.0,0.00015537,2]
[425893077,1782028232000,-300.0,0.00015537,2]
[425893079,1782028232000,-64.95558205,0.00015537,2]
[425893075,1782028232000,-63.95580136,0.00015537,2]
[425893191,1782028240000,-500.0,0.00016611,2]
[425893178,1782028240000,-233.78082712,0.00016611,2]
[425893179,1782028240000,-504.21868562,0.00016611,2]
[425893177,1782028240000,-500.0,0.00016611,2]
[425893175,1782028240000,-500.0,0.00016611,2]
[425893167,1782028240000,-1417.2,0.00016438,2]
[425893173,1782028240000,-159.28368088,0.00016523,2]
[425893168,1782028240000,-500.0,0.00016438,2]
[425893174,1782028240000,-806.58998702,0.00016544,2]
[425893169,1782028240000,-500.0,0.00016438,2]
[425893170,1782028240000,-500.0,0.00016438,2]
[425893171,1782028240000,-1663.22,0.00016438,2]
[425893180,1782028240000,-500.0,0.00016611,2]
[425893176,1782028240000,-164.15543101,0.00016611,2]
[425893172,1782028240000,-2288.64124652,0.00016512,2]
[425893165,1782028240000,-500.0,0.00016438,2]
[425893160,1782028240000,-174.007629,0.00015812,2]
[425893162,1782028240000,-500.0,0.00016438,2]
[425893156,1782028240000,-300.0,0.00015537,2]
[425893158,1782028240000,-300.0,0.00015537,2]
[425893161,1782028240000,-500.0,0.00016438,2]
[425893157,1782028240000,-300.0,0.00015537,2]
[425893163,1782028240000,-500.0,0.00016438,2]
[425893154,1782028240000,-300.0,0.00015537,2]
[425893164,1782028240000,-500.0,0.00016438,2]
[425893159,1782028240000,-300.0,0.00015537,2]
[425893152,1782028240000,-235.04441795,0.00015537,2]
[425893181,1782028240000,-393.50772709,0.00016611,2]
[425893166,1782028240000,-500.0,0.00016438,2]
[425893182,1782028240000,-500.0,0.00016611,2]
[425893153,1782028240000,-300.0,0.00015537,2]
[425893190,1782028240000,-500.0,0.00016611,2]
[425893184,1782028240000,-173.26639501,0.00016611,2]
[425893215,1782028240000,-18681.69437995,0.00016612,2]
[425893213,1782028240000,-5568.48408978,0.00016612,2]
[425893211,1782028240000,-2725.57196112,0.00016612,2]
[425893210,1782028240000,-288824.96487987,0.00016612,2]
[425893212,1782028240000,-7031.587956,0.00016612,2]
[425893214,1782028240000,-642860.83680549,0.00016612,2]
[425893209,1782028240000,-500.0,0.00016611,2]
[425893208,1782028240000,-500.0,0.00016611,2]
[425893206,1782028240000,-500.0,0.00016611,2]
[425893207,1782028240000,-500.0,0.00016611,2]
[425893205,1782028240000,-500.0,0.00016611,2]
[425893203,1782028240000,-500.0,0.00016611,2]
[425893201,1782028240000,-500.0,0.00016611,2]
[425893202,1782028240000,-365.49702792,0.00016611,2]
[425893155,1782028240000,-300.0,0.00015537,2]
[425893199,1782028240000,-500.0,0.00016611,2]
[425893187,1782028240000,-500.0,0.00016611,2]
[425893183,1782028240000,-477.94610916,0.00016611,2]
[425893189,1782028240000,-500.0,0.00016611,2]
[425893188,1782028240000,-500.0,0.00016611,2]
[425893185,1782028240000,-500.0,0.00016611,2]
[425893200,1782028240000,-500.0,0.00016611,2]
[425893192,1782028240000,-500.0,0.00016611,2]
[425893186,1782028240000,-500.0,0.00016611,2]
[425893196,1782028240000,-500.0,0.00016611,2]
[425893197,1782028240000,-500.0,0.00016611,2]
[425893204,1782028240000,-500.0,0.00016611,2]
[425893195,1782028240000,-500.0,0.00016611,2]
[425893193,1782028240000,-554.9681407,0.00016611,2]
[425893198,1782028240000,-500.0,0.00016611,2]
[425893194,1782028240000,-500.0,0.00016611,2]
[425893272,1782028246000,-3662.61056981,0.00016612,2]
[425893301,1782028323000,186.67798895,0.00022879,120]
[425893302,1782028325000,10000.0,0.00023288,120]
[425893303,1782028333000,10000.0,0.00015,90]
[425893304,1782028339000,10000.0,0.00012,60]
[425893306,1782028353000,1000.0,0.0001,10]
[425893305,1782028353000,398.44652278,0.0001,10]
[425893308,1782028353000,7601.55347722,0.0001,10]
[425893307,1782028353000,1000.0,0.0001,10]
[425893310,1782028363000,10000.0,0.00023288,120]
[425893311,1782028370000,10000.0,0.00015,90]
[425893312,1782028377000,10000.0,0.00012,60]
[425893322,1782028392000,10000.0,0.0001,10]
[425893333,1782028401000,10000.0,0.00023288,120]
[425893338,1782028409000,10000.0,0.00015,90]
[425893351,1782028415000,10000.0,0.00012,60]
[425893353,1782028430000,10000.0,0.00023288,120]
[425893354,1782028439000,10000.0,0.00015,90]
[425893355,1782028446000,10000.0,0.00012,60]
[425893356,1782028455000,10000.0,0.00023288,120]
[425893358,1782028462000,10000.0,0.00015,90]
[425893365,1782028606000,188.28353288,0.0002054,120]
[425893470,1782029432000,-5000.0,0.00014454,2]
[425893471,1782029432000,-2219.98898909,0.000146,2]
[425893554,1782029440000,-979.29210242,0.000146,2]
[425893563,1782029443000,-500.0,0.00015233,2]
[425893562,1782029443000,-4239.79890849,0.000146,2]
[425893565,1782029443000,-316.723,0.00016084,2]
[425893567,1782029443000,-500.0,0.00016411,2]
[425893566,1782029443000,-2002.56109074,0.00016312,2]
[425893569,1782029443000,-500.0,0.00016411,2]
[425893564,1782029443000,-189.27926138,0.00016084,2]
[425893572,1782029443000,-500.0,0.00016411,2]
[425893568,1782029443000,-172.77423786,0.00016411,2]
[425893575,1782029443000,-253.59132883,0.00016411,2]
[425893570,1782029443000,-500.0,0.00016411,2]
[425893574,1782029443000,-605.80433556,0.00016411,2]
[425893573,1782029443000,-500.0,0.00016411,2]
[425893571,1782029443000,-500.0,0.00016411,2]
[425893589,1782029446000,-34394.2895556,0.00016412,2]
[425893588,1782029446000,-29082.77046072,0.00016412,2]
[425893587,1782029446000,-2477.90705574,0.00016412,2]
[425893586,1782029446000,-3797.01763724,0.00016412,2]
[425893584,1782029446000,-260.05525015,0.00016411,2]
[425893585,1782029446000,-1970.64473977,0.00016412,2]
[425893631,1782030491000,4126.33550626,0.00022839,120]
[425893702,1782030633000,-500.0,0.00015476,2]
[425893690,1782030633000,-155.66760312,0.00015416,2]
[425893694,1782030633000,-500.0,0.00015476,2]
[425893688,1782030633000,-540.13363276,0.00015416,2]
[425893696,1782030633000,-500.0,0.00015476,2]
[425893685,1782030633000,-2203.54241452,0.00015416,2]
[425893707,1782030633000,-778.79946354,0.00015476,2]
[425893692,1782030633000,-500.0,0.00015476,2]
[425893681,1782030633000,-2287.35805208,0.00014454,2]